Workbook

Sheet Read Me
H4: About This Workbook
E10: This workbook emulates artificial economic calculation as
E11: envisioned for regimes of pure anarcho capitalism. It is
E12: intended to falsify, by direct counterexample, economics’
E13: presupposition that its Economic Calculation Problem is
E14: “complex beyond all possibility of comprehension by merely
E15: human intellect.”
E17: The demonstration operates on hypothetical input/output data
E18: for a world composed of three economies. Their respective
E19: operations are detailed in three individual worksheets: ‘Econ 1’;
E20: ‘Econ 2’; and ‘Econ 3’. Their combined activities are brought
E21: together on the ‘Global’ sheet. And their financial stocks and
E22: flows are presented together on the ‘Financial’ sheet.
E24: Each of these five worksheets is a portal through which the
E25: emulation can be viewed and controlled. A sixth sheet named
E26: ‘Initial’ contains the data used to reinitialize the model at a
E27: Pareto optimum. Initialization data are protected and cannot be
E28: changed.
E31: All five experimental portals have a panel of three buttons
E32: running across the top, and a slider down the middle.
E34: Clicking the ‘Reset’ button in any portal returns the model
E35: to its initial Pareto optimum. The model must be Reset
E36: upon opening the workbook.
E38: Clicking ‘Stimulate’ button changes the model's boundary
E39: conditions such that each of the three economies is
E40: operating on the same underlying utility and production
E41: parameters. This challenges the model to discover a new
E42: optimal state in which each economy acquires the exactly
E43: same array of physical assets.
E45: Clicking the ‘Start’ button launches the emulation, which
E46: proceeds to advance ‘TIME’ until the ‘SIMULATE UNTIL’
E47: parameter is reached.
E49: ‘SIMULATE UNTIL’ is controlled by the vertical slider.
E52: One fairly dispositive experiment is pre-staged in the workbook:
E53: clicking on the three buttons in succession challenges the
E54: emulator to discover a new optimum in which, as we know in
E55: advance, there can be no imports or exports.
E58: Once the model’s causality is understood, the experimenter can
E59: proceed at will to create new, never before quantified, instances
E60: of Pareto optimality:
E62: ‘Reset’ the emulator.
E64: Change any of the model’s parameters and/or state
E65: variables directly in their cells on the worksheets.
E67: ‘Start’ the emulation, and observe the model’s progress
E68: through a new series of chaotic physical states and
E69: disequilibrium prices toward whatever optimum is implicit
E70: in your new parameters.
E72: At any point when emulator has stopped (whether or not
E73: optimality has been reached) you can move to another
E74: portal, and/or impose new stimuli.
E76: Clicking on the ‘Stimulate’ button (when the emulation has
E77: stopped) will always realign the economies’ underlying
E78: utility and production parameters such that all three
E79: economies must acquire exactly the same, never before
E80: quantified, array of physical assets.
E83: The algorithm operating here, together with an explication of its
E84: data structures, is fully documented in a monograph maintained
E85: by the EcoMod Group at:
E87: http://ecomod.net/system/files/Roemer.Economic%20Calculation.pdf
E89: Operation of the model is detailed in pages 9-14.
E92: An online hub for further investigations of this technology is
E93: available at:
E95: https://www.sfecon.com
E98: And a dedicated YouTube channel is under continuing development at:
E100: https://www.youtube.com/channel/UCt0NQhbUtZfAlxXlnd-HRWg

Sheet Econ 1
O4: TIME | P4: =Global!N3 -> 50.01
O6: SIMULATE UNTIL | P6: =Global!N5 -> 100
P7: (YRS)
D9: INTEREST | E9: 0.1
D10: RATE | E10: 0.0977668432 | F10: -i | I10: Economy #1:
R11: State Variables:
D12: INVESTMENT | E12: 7.193188023
D13: TERM | E13: (YRS)
G14: VALUE | H14: CAPITAL | I14: GENERAL | J14: NON_DUR | K14: BOURGS | L14: PRLTRT | R14: Investment | T14: Saving | V14: VALUE | W14: CAPITAL | X14: GENERAL | Y14: NON_DUR | Z14: BOURGS | AA14: PRLTRT
B15: Physical I/O:
G16: -0.000208252992 | H16: -0.0001680059176 | I16: -0.001467529084 | J16: -0.006822418589 | K16: 0.007234115284 | L16: -0.3573797639 | M16: + XPT / - MPT | V16: -8.375706203e-05 | W16: -0.0005591555274 | X16: -0.001466326702 | Y16: -0.002274246861 | Z16: 0.002411373259 | AA16: -0.1191263248
E17: r | F17: R | G17: 0 | H17: 1 | I17: 2 | J17: 3 | K17: L | L17: N | R17: k | T17: g | U17: A | V17: 0 | W17: 1 | X17: 2 | Y17: 3 | Z17: L | AA17: N
D18: ( - ) OUTPUT | E18: 0.0004172770714 | F18: 0 | G18: 309552.8854 | H18: -99.73476542 | I18: -747.9543119 | J18: -2946.23213 | K18: -876 | L18: -8766 | M18: 0 | N18: OUTPUT ( - ) | R18: -447265.7771 | T18: 0 | U18: 0 | V18: 103184.2951 | W18: -332.4492106 | X18: -747.9543099 | Y18: -982.0773754 | Z18: -292 | AA18: -2922 | AB18: 0
D19: CAPITAL | E19: -17199.35993 | F19: 1 | G19: -86183.84946 | H19: 30.26523161 | I19: 202.4188415 | J19: 721.4347564 | K19: 21.0481106 | L19: 646.5400079 | M19: 1 | N19: CAPITAL | R19: 175922.2508 | T19: 0 | U19: 1 | V19: -28727.94982 | W19: 100.8841021 | X19: 202.4188403 | Y19: 240.4782519 | Z19: 7.016036901 | AA19: 215.5133363 | AB19: 1 | AC19: CAPITAL
D20: GENERAL | E20: -14760.53656 | F20: 2 | G20: -73935.46565 | H20: 25.22424477 | I20: 102.0456764 | J20: 633.0267955 | K20: 30.88985732 | L20: 639.4816289 | M20: 2 | N20: GENERAL | R20: 150976.945 | T20: 0 | U20: 2 | V20: -24645.15519 | W20: 84.08081275 | X20: 102.0456763 | Y20: 211.0089314 | Z20: 10.29661911 | AA20: 213.1605423 | AB20: 2 | AC20: GENERAL
D21: NON_DUR | E21: -11767.85797 | F21: 3 | G21: -63100.30556 | H21: 19.23829973 | I21: 143.4190314 | J21: 400.1152255 | K21: 25.1933768 | L21: 545.57817 | M21: 3 | N21: NON_DUR | R21: 120366.5813 | T21: 0 | U21: 3 | V21: -21033.43523 | W21: 64.12766865 | X21: 143.4190318 | Y21: 133.3717423 | Z21: 8.397792294 | AA21: 181.8593908 | AB21: 3 | AC21: NON_DUR
D22: BOURGS | E22: 39931.06507 | F22: L | G22: -63769.65589 | H22: 20.01026763 | I22: 200.0959834 | J22: 894.8647365 | K22: 798.8614212 | L22: 202.3114207 | M22: L | N22: BOURGS | R22: 0 | T22: -100137.3277 | U22: L | V22: -21256.55195 | W22: 66.70089153 | X22: 200.0959822 | Y22: 298.2882447 | Z22: 266.2871403 | AA22: 67.43714199 | AB22: L | AC22: BOURGS
D23: PRLTRT | E23: 3796.688972 | F23: N | G23: -22563.60865 | H23: 4.996888368 | I23: 99.97624687 | J23: 296.7974389 | K23: 0 | L23: 6732.446152 | M23: N | N23: PRLTRT | R23: 0 | T23: -9521.174101 | U23: N | V23: -7521.202865 | W23: 16.65629534 | X23: 99.97624575 | Y23: 98.93247933 | Z23: 0 | AA23: 2244.148715 | AB23: N | AC23: PRLTRT
G24: 0 | H24: 1 | I24: 2 | J24: 3 | K24: L | L24: N | V24: 0 | W24: 1 | X24: 2 | Y24: 3 | Z24: L | AA24: N
G26: VALUE | H26: CAPITAL | I26: GENERAL | J26: NON_DUR | K26: BOURGS | L26: PRLTRT | V26: VALUE | W26: CAPITAL | X26: GENERAL | Y26: NON_DUR | Z26: BOURGS | AA26: PRLTRT
B28: Prices & Values: | G28: 2.020188259 | H28: 1883.140666 | I28: 215.0378819 | J28: 46.28548434 | K28: 1127.158982 | L28: 20.15245496
G29: 2.003702769 | H29: 1903.911649 | I29: 217.801055 | J29: 46.90808845 | K29: 1138.786525 | L29: 20.36537051 | M29: < Prices | V29: -0.0001005097234 | W29: -0.0005594124585 | X29: -0.001464541085 | Y29: -0.002274372071 | Z29: 0.00241137507 | AA29: -0.1191260183
E30: c | G30: 0 | H30: 1 | I30: 2 | J30: 3 | K30: L | L30: N | U30: B | V30: 0 | W30: 1 | X30: 2 | Y30: 3 | Z30: L | AA30: N
D31: MCP | E31: 1 | F31: 0 | G31: 2.003702752 | H31: 1903.911645 | I31: 217.8010538 | J31: 46.90808826 | K31: 0 | L31: 0 | M31: 0 | N31: MCP | T31: 0 | U31: 0 | V31: 103184.2951 | W31: -332.4491961 | X31: -747.9543076 | Y31: -982.0773738 | Z31: -292 | AA31: -2922 | AB31: 0
D32: CAPITAL | E32: 1.000000001 | F32: 1 | G32: 2.003702774 | H32: 1903.911655 | I32: 217.8010555 | J32: 46.90808853 | K32: 1138.786525 | L32: 20.36537055 | M32: 1 | N32: CAPITAL | S32: CAPITAL | T32: 0 | U32: 1 | V32: -28727.94981 | W32: 100.8840988 | X32: 202.4188385 | Y32: 240.4782515 | Z32: 7.016036939 | AA32: 215.5133366 | AB32: 1 | AC32: CAPITAL
D33: GENERAL | E33: 0.9999999978 | F33: 2 | G33: 2.003702767 | H33: 1903.911648 | I33: 217.8010544 | J33: 46.90808838 | K33: 1138.786522 | L33: 20.36537049 | M33: 2 | N33: GENERAL | S33: GENERAL | T33: 0 | U33: 2 | V33: -24645.15516 | W33: 84.08081092 | X33: 102.0456761 | Y33: 211.0089309 | Z33: 10.29661911 | AA33: 213.1605415 | AB33: 2 | AC33: GENERAL
D34: NON_DUR | E34: 0.9999999995 | F34: 3 | G34: 2.00370277 | H34: 1903.911649 | I34: 217.801055 | J34: 46.9080884 | K34: 1138.786524 | L34: 20.36537052 | M34: 3 | N34: NON_DUR | S34: NON_DUR | T34: 0 | U34: 3 | V34: -21033.43528 | W34: 64.12766738 | X34: 143.4190325 | Y34: 133.3717429 | Z34: 8.397792324 | AA34: 181.8593917 | AB34: 3 | AC34: NON_DUR
D35: BOURGS | E35: 1.000000002 | F35: L | G35: 2.003702814 | H35: 1903.911665 | I35: 217.8010606 | J35: 46.9080901 | K35: 1138.786475 | L35: 20.36537004 | M35: L | N35: BOURGS | S35: BOURGS | T35: -100137.3234 | U35: L | V35: -21256.55194 | W35: 66.70089038 | X35: 200.0959807 | Y35: 298.2882439 | Z35: 266.2871403 | AA35: 67.43714391 | AB35: L | AC35: BOURGS
D36: PRLTRT | E36: 1.000000073 | F36: N | G36: 2.00370297 | H36: 1903.911779 | I36: 217.8010783 | J36: 46.90809274 | K36: 0 | L36: 20.36537141 | M36: N | N36: PRLTRT | S36: PRLTRT | T36: -9521.171768 | U36: N | V36: -7521.202846 | W36: 16.65629678 | X36: 99.97624443 | Y36: 98.93247903 | Z36: 0 | AA36: 2244.148712 | AB36: N | AC36: PRLTRT
G37: 0 | H37: 1 | I37: 2 | J37: 3 | K37: L | L37: N | V37: 0 | W37: 1 | X37: 2 | Y37: 3 | Z37: L | AA37: N
G39: VALUE | H39: CAPITAL | I39: GENERAL | J39: NON_DUR | K39: BOURGS | L39: PRLTRT | V39: VALUE | W39: CAPITAL | X39: GENERAL | Y39: NON_DUR | Z39: BOURGS | AA39: PRLTRT
B40: Utility Parameters:
G42: 9256004.042 | H42: -2265.721962 | I42: -19015.50142 | J42: -86285.35269 | K42: -2607.705212 | L42: -150935.1233 | V42: -0.000119509177 | W42: -0.0005656377809 | X42: -0.00146198079 | Y42: -0.00227451387 | Z42: 0.002411377192 | AA42: -0.1191256718
E43: u | F43: U | G43: 0 | H43: 1 | I43: 2 | J43: 3 | K43: L | L43: N | U43: C | V43: 0 | W43: 1 | X43: 2 | Y43: 3 | Z43: L | AA43: N
E44: -18546280.93 | F44: 0 | G44: -1771689.463 | H44: 709.0221284 | I44: 5283.704347 | J44: 22000 | K44: 876 | L44: 8766 | M44: 0 | T44: 0 | U44: 0 | V44: 103184.2951 | W44: -332.449174 | X44: -747.954305 | Y44: -982.0773722 | Z44: -292 | AA44: -2922 | AB44: 0
D45: CAPITAL | E45: 6977375.188 | F45: 1 | G45: -2808530.18 | H45: 579.0221284 | I45: 5123.677045 | J45: 24008.40059 | K45: 997.6057642 | L45: 56314.33399 | M45: 1 | N45: CAPITAL | S45: CAPITAL | T45: 0 | U45: 1 | V45: -28727.9498 | W45: 100.8840998 | X45: 202.418836 | Y45: 240.4782512 | Z45: 7.016036978 | AA45: 215.5133369 | AB45: 1 | AC45: CAPITAL
D46: GENERAL | E46: 5942107.378 | F46: 2 | G46: -2391228.415 | H46: 493.6502202 | I46: 4433.704347 | J46: 20427.11809 | K46: 836.6047242 | L46: 47868.89871 | M46: 2 | N46: GENERAL | S46: GENERAL | T46: 0 | U46: 2 | V46: -24645.15512 | W46: 84.08081667 | X46: 102.0456755 | Y46: 211.0089303 | Z46: 10.29661911 | AA46: 213.1605406 | AB46: 2 | AC46: GENERAL
D47: NON_DUR | E47: 5374422.813 | F47: 3 | G47: -2167210.094 | H47: 450.2035597 | I47: 3960.215016 | J47: 18653.65259 | K47: 759.6559399 | L47: 43341.46156 | M47: 3 | N47: NON_DUR | S47: NON_DUR | T47: 0 | U47: 3 | V47: -21033.43534 | W47: 64.12764026 | X47: 143.4190338 | Y47: 133.3717435 | Z47: 8.397792359 | AA47: 181.8593928 | AB47: 3 | AC47: NON_DUR
D48: BOURGS | E48: 176323.7803 | F48: L | G48: -80133.82144 | H48: 17.85123189 | I48: 130.8709568 | J48: 641.8627332 | K48: -862.1612163 | L48: 3337.273201 | M48: L | N48: BOURGS | S48: BOURGS | T48: -100137.3162 | U48: L | V48: -21256.55193 | W48: 66.70088876 | X48: 200.0959788 | Y48: 298.288243 | Z48: 266.2871402 | AA48: 67.43714594 | AB48: L | AC48: BOURGS
D49: PRLTRT | E49: 76051.77067 | F49: N | G49: -37212.06894 | H49: 15.97269368 | I49: 83.32970625 | J49: 554.3186888 | K49: 0 | L49: -8692.844195 | M49: N | N49: PRLTRT | S49: PRLTRT | T49: -9521.168343 | U49: N | V49: -7521.202825 | W49: 16.65629798 | X49: 99.97624288 | Y49: 98.93247871 | Z49: 0 | AA49: 2244.148709 | AB49: N | AC49: PRLTRT
G50: 0 | H50: 1 | I50: 2 | J50: 3 | K50: L | L50: N | V50: 0 | W50: 1 | X50: 2 | Y50: 3 | Z50: L | AA50: N
G52: VALUE | H52: CAPITAL | I52: GENERAL | J52: NON_DUR | K52: BOURGS | L52: PRLTRT | V52: VALUE | W52: CAPITAL | X52: GENERAL | Y52: NON_DUR | Z52: BOURGS | AA52: PRLTRT

Sheet Econ 2
O4: TIME | P4: =Global!N3 -> 50.01
O6: SIMULATE UNTIL | P6: =Global!N5 -> 100
P7: (YRS)
D9: INTEREST | E9: 0.1
D10: RATE | E10: 0.09776682886 | F10: -i | I10: Economy #2:
R11: State Variables:
D12: INVESTMENT | E12: 6.817186066
D13: TERM | E13: (YRS)
G14: VALUE | H14: CAPITAL | I14: GENERAL | J14: NON_DUR | K14: BOURGS | L14: PRLTRT | R14: Investment | T14: Saving | V14: VALUE | W14: CAPITAL | X14: GENERAL | Y14: NON_DUR | Z14: BOURGS | AA14: PRLTRT
B15: Physical I/O:
G16: 0.001725452745 | H16: 0.001708441693 | I16: 0.01493217706 | J16: 0.06933908046 | K16: -0.0736516959 | L16: 3.639146747 | M16: + XPT / - MPT | V16: 0.0006921268254 | W16: 0.005687995437 | X16: 0.01492797406 | Y16: 0.02311189423 | Z16: -0.02455058554 | AA16: 1.213046889
E17: r | F17: R | G17: 0 | H17: 1 | I17: 2 | J17: 3 | K17: L | L17: N | R17: k | T17: g | U17: A | V17: 0 | W17: 1 | X17: 2 | Y17: 3 | Z17: L | AA17: N
D18: ( - ) OUTPUT | E18: -0.003409820543 | F18: 0 | G18: 309548.2203 | H18: -99.73476542 | I18: -747.9543087 | J18: -2946.23213 | K18: -876 | L18: -8766 | M18: 0 | N18: OUTPUT ( - ) | R18: -441124.191 | T18: 0 | U18: 0 | V18: 103182.7401 | W18: -332.4492106 | X18: -747.954304 | Y18: -982.0773754 | Z18: -292 | AA18: -2922 | AB18: 0
D19: CAPITAL | E19: -16963.18509 | F19: 1 | G19: -86183.84946 | H19: 30.26523161 | I19: 202.4188415 | J19: 721.4347564 | K19: 21.0481106 | L19: 646.5400079 | M19: 1 | N19: CAPITAL | R19: 173506.5926 | T19: 0 | U19: 1 | V19: -28727.94982 | W19: 100.8841021 | X19: 202.4188403 | Y19: 240.4782519 | Z19: 7.016036901 | AA19: 215.5133363 | AB19: 1 | AC19: CAPITAL
D20: GENERAL | E20: -14557.84932 | F20: 2 | G20: -73935.46744 | H20: 25.22424515 | I20: 102.0456797 | J20: 633.0268108 | K20: 30.88985795 | L20: 639.4816641 | M20: 2 | N20: GENERAL | R20: 148903.8183 | T20: 0 | U20: 2 | V20: -24645.1559 | W20: 84.08082157 | X20: 102.0456823 | Y20: 211.0089375 | Z20: 10.29661936 | AA20: 213.1605564 | AB20: 2 | AC20: GENERAL
D21: NON_DUR | E21: -11606.26639 | F21: 3 | G21: -63100.30556 | H21: 19.23829973 | I21: 143.4190314 | J21: 400.1152255 | K21: 25.1933768 | L21: 545.57817 | M21: 3 | N21: NON_DUR | R21: 118713.7801 | T21: 0 | U21: 3 | V21: -21033.43523 | W21: 64.12766865 | X21: 143.4190318 | Y21: 133.3717423 | Z21: 8.397792294 | AA21: 181.8593908 | AB21: 3 | AC21: NON_DUR
D22: BOURGS | E22: 39479.01152 | F22: L | G22: -63772.39619 | H22: 20.01098861 | I22: 200.1022859 | J22: 894.8939998 | K22: 798.9423063 | L22: 202.3788237 | M22: L | N22: BOURGS | R22: 0 | T22: -100946.4295 | U22: L | V22: -21257.46539 | W22: 66.70329488 | X22: 200.1022847 | Y22: 298.2979992 | Z22: 266.314102 | AA22: 67.45960968 | AB22: L | AC22: BOURGS
D23: PRLTRT | E23: 3648.292685 | F23: N | G23: -22556.20337 | H23: 4.994290561 | I23: 99.9535381 | J23: 296.6919988 | K23: 0 | L23: 6728.382188 | M23: N | N23: PRLTRT | R23: 0 | T23: -9328.563184 | U23: N | V23: -7518.734438 | W23: 16.64763603 | X23: 99.95353697 | Y23: 98.89733263 | Z23: 0 | AA23: 2242.79406 | AB23: N | AC23: PRLTRT
G24: 0 | H24: 1 | I24: 2 | J24: 3 | K24: L | L24: N | V24: 0 | W24: 1 | X24: 2 | Y24: 3 | Z24: L | AA24: N
G26: VALUE | H26: CAPITAL | I26: GENERAL | J26: NON_DUR | K26: BOURGS | L26: PRLTRT | V26: VALUE | W26: CAPITAL | X26: GENERAL | Y26: NON_DUR | Z26: BOURGS | AA26: PRLTRT
B28: Prices & Values: | G28: 2.092305348 | H28: 1950.365402 | I28: 222.7143476 | J28: 47.93779291 | K28: 1167.396531 | L28: 20.87186137
G29: 1.976188844 | H29: 1877.76801 | I29: 214.8103111 | J29: 46.26396815 | K29: 1123.149232 | L29: 20.08572261 | M29: < Prices | V29: 0.0008287003705 | W29: 0.00568995403 | X29: 0.01492172985 | Y29: 0.02311057325 | Z29: -0.02455060936 | AA29: 1.213044525
E30: c | G30: 0 | H30: 1 | I30: 2 | J30: 3 | K30: L | L30: N | U30: B | V30: 0 | W30: 1 | X30: 2 | Y30: 3 | Z30: L | AA30: N
D31: MCP | E31: 1 | F31: 0 | G31: 1.976188826 | H31: 1877.768004 | I31: 214.8103102 | J31: 46.26396792 | K31: 0 | L31: 0 | M31: 0 | N31: MCP | T31: 0 | U31: 0 | V31: 103182.7401 | W31: -332.4491961 | X31: -747.9542977 | Y31: -982.0773738 | Z31: -292 | AA31: -2922 | AB31: 0
D32: CAPITAL | E32: 1 | F32: 1 | G32: 1.976188846 | H32: 1877.768013 | I32: 214.8103113 | J32: 46.26396818 | K32: 1123.14923 | L32: 20.08572262 | M32: 1 | N32: CAPITAL | S32: CAPITAL | T32: 0 | U32: 1 | V32: -28727.94981 | W32: 100.8840988 | X32: 202.4188385 | Y32: 240.4782515 | Z32: 7.016036939 | AA32: 215.5133366 | AB32: 1 | AC32: CAPITAL
D33: GENERAL | E33: 0.9999999997 | F33: 2 | G33: 1.976188844 | H33: 1877.768011 | I33: 214.8103107 | J33: 46.26396814 | K33: 1123.149231 | L33: 20.08572261 | M33: 2 | N33: GENERAL | S33: GENERAL | T33: 0 | U33: 2 | V33: -24645.15601 | W33: 84.08081757 | X33: 102.045686 | Y33: 211.0089381 | Z33: 10.29661941 | AA33: 213.1605583 | AB33: 2 | AC33: GENERAL
D34: NON_DUR | E34: 0.9999999986 | F34: 3 | G34: 1.976188843 | H34: 1877.768008 | I34: 214.8103109 | J34: 46.26396805 | K34: 1123.14923 | L34: 20.0857226 | M34: 3 | N34: NON_DUR | S34: NON_DUR | T34: 0 | U34: 3 | V34: -21033.43528 | W34: 64.12766738 | X34: 143.4190325 | Y34: 133.3717429 | Z34: 8.397792324 | AA34: 181.8593917 | AB34: 3 | AC34: NON_DUR
D35: BOURGS | E35: 1.000000006 | F35: L | G35: 1.976188896 | H35: 1877.768034 | I35: 214.8103175 | J35: 46.26396996 | K35: 1123.149187 | L35: 20.08572222 | M35: L | N35: BOURGS | S35: BOURGS | T35: -100946.4253 | U35: L | V35: -21257.46538 | W35: 66.70329358 | X35: 200.1022833 | Y35: 298.2979984 | Z35: 266.3141019 | AA35: 67.45961164 | AB35: L | AC35: BOURGS
D36: PRLTRT | E36: 1.000000079 | F36: N | G36: 1.976189056 | H36: 1877.76815 | I36: 214.8103355 | J36: 46.26397269 | K36: 0 | L36: 20.08572363 | M36: N | N36: PRLTRT | S36: PRLTRT | T36: -9328.560958 | U36: N | V36: -7518.734418 | W36: 16.64763756 | X36: 99.95353565 | Y36: 98.89733232 | Z36: 0 | AA36: 2242.794057 | AB36: N | AC36: PRLTRT
G37: 0 | H37: 1 | I37: 2 | J37: 3 | K37: L | L37: N | V37: 0 | W37: 1 | X37: 2 | Y37: 3 | Z37: L | AA37: N
G39: VALUE | H39: CAPITAL | I39: GENERAL | J39: NON_DUR | K39: BOURGS | L39: PRLTRT | V39: VALUE | W39: CAPITAL | X39: GENERAL | Y39: NON_DUR | Z39: BOURGS | AA39: PRLTRT
B40: Utility Parameters:
G42: 9256001.16 | H42: -2265.721962 | I42: -19015.50142 | J42: -86285.35269 | K42: -2607.623121 | L42: -150939.4301 | V42: 0.0009834934916 | W42: 0.005738859621 | X42: 0.01491277353 | Y42: 0.02310907751 | Z42: -0.02455063657 | AA42: 1.213041845
E43: u | F43: U | G43: 0 | H43: 1 | I43: 2 | J43: 3 | K43: L | L43: N | U43: C | V43: 0 | W43: 1 | X43: 2 | Y43: 3 | Z43: L | AA43: N
E44: -18291606.23 | F44: 0 | G44: -1771686.581 | H44: 709.0221284 | I44: 5283.704347 | J44: 22000 | K44: 876 | L44: 8766 | M44: 0 | T44: 0 | U44: 0 | V44: 103182.7401 | W44: -332.449174 | X44: -747.9542893 | Y44: -982.0773722 | Z44: -292 | AA44: -2922 | AB44: 0
D45: CAPITAL | E45: 6881565.081 | F45: 1 | G45: -2808530.18 | H45: 579.0221284 | I45: 5123.677045 | J45: 24008.40059 | K45: 997.6057642 | L45: 56314.33399 | M45: 1 | N45: CAPITAL | S45: CAPITAL | T45: 0 | U45: 1 | V45: -28727.9498 | W45: 100.8840998 | X45: 202.418836 | Y45: 240.4782512 | Z45: 7.016036978 | AA45: 215.5133369 | AB45: 1 | AC45: CAPITAL
D46: GENERAL | E46: 5860513.092 | F46: 2 | G46: -2391228.415 | H46: 493.6502202 | I46: 4433.704347 | J46: 20427.11809 | K46: 836.6047242 | L46: 47868.89871 | M46: 2 | N46: GENERAL | S46: GENERAL | T46: 0 | U46: 2 | V46: -24645.15613 | W46: 84.08076912 | X46: 102.0456912 | Y46: 211.0089389 | Z46: 10.29661946 | AA46: 213.1605605 | AB46: 2 | AC46: GENERAL
D47: NON_DUR | E47: 5300623.71 | F47: 3 | G47: -2167210.094 | H47: 450.2035597 | I47: 3960.215016 | J47: 18653.65259 | K47: 759.6559399 | L47: 43341.46156 | M47: 3 | N47: NON_DUR | S47: NON_DUR | T47: 0 | U47: 3 | V47: -21033.43534 | W47: 64.12764026 | X47: 143.4190338 | Y47: 133.3717435 | Z47: 8.397792359 | AA47: 181.8593928 | AB47: 3 | AC47: NON_DUR
D48: BOURGS | E48: 173810.3833 | F48: L | G48: -80133.82144 | H48: 17.85123189 | I48: 130.8709568 | J48: 641.8627332 | K48: -862.2433069 | L48: 3337.273201 | M48: L | N48: BOURGS | S48: BOURGS | T48: -100946.4186 | U48: L | V48: -21257.46537 | W48: 66.70329114 | X48: 200.1022814 | Y48: 298.2979975 | Z48: 266.3141018 | AA48: 67.45961373 | AB48: L | AC48: BOURGS
D49: PRLTRT | E49: 75093.96848 | F49: N | G49: -37212.06894 | H49: 15.97269368 | I49: 83.32970625 | J49: 554.3186888 | K49: 0 | L49: -8688.537367 | M49: N | N49: PRLTRT | S49: PRLTRT | T49: -9328.557768 | U49: N | V49: -7518.734397 | W49: 16.64763865 | X49: 99.95353409 | Y49: 98.89733199 | Z49: 0 | AA49: 2242.794054 | AB49: N | AC49: PRLTRT
G50: 0 | H50: 1 | I50: 2 | J50: 3 | K50: L | L50: N | V50: 0 | W50: 1 | X50: 2 | Y50: 3 | Z50: L | AA50: N
G52: VALUE | H52: CAPITAL | I52: GENERAL | J52: NON_DUR | K52: BOURGS | L52: PRLTRT | V52: VALUE | W52: CAPITAL | X52: GENERAL | Y52: NON_DUR | Z52: BOURGS | AA52: PRLTRT

Sheet Econ 3
O4: TIME | P4: =Global!N3 -> 50.01
O6: SIMULATE UNTIL | P6: =Global!N5 -> 100
P7: (YRS)
D9: INTEREST | E9: 0.1
D10: RATE | E10: 0.09776685269 | F10: -i | I10: Economy #3:
R11: State Variables:
D12: INVESTMENT | E12: 7.219880154
D13: TERM | E13: (YRS)
G14: VALUE | H14: CAPITAL | I14: GENERAL | J14: NON_DUR | K14: BOURGS | L14: PRLTRT | R14: Investment | T14: Saving | V14: VALUE | W14: CAPITAL | X14: GENERAL | Y14: NON_DUR | Z14: BOURGS | AA14: PRLTRT
B15: Physical I/O:
G16: -0.00151719969 | H16: -0.001540435775 | I16: -0.01346464797 | J16: -0.06251666187 | K16: 0.06641758061 | L16: -3.281766983 | M16: + XPT / - MPT | V16: -0.0006083697654 | W16: -0.00512883991 | X16: -0.01346164735 | Y16: -0.02083764737 | Z16: 0.02213921228 | AA16: -1.093920565
E17: r | F17: R | G17: 0 | H17: 1 | I17: 2 | J17: 3 | K17: L | L17: N | R17: k | T17: g | U17: A | V17: 0 | W17: 1 | X17: 2 | Y17: 3 | Z17: L | AA17: N
D18: ( - ) OUTPUT | E18: 0.003031758621 | F18: 0 | G18: 309556.2972 | H18: -99.73476542 | I18: -747.9543119 | J18: -2946.23214 | K18: -876 | L18: -8766 | M18: 0 | N18: OUTPUT ( - ) | R18: -446050.6826 | T18: 0 | U18: 0 | V18: 103185.4324 | W18: -332.4492106 | X18: -747.9543099 | Y18: -982.0773794 | Z18: -292 | AA18: -2922 | AB18: 0
D19: CAPITAL | E19: -17152.6366 | F19: 1 | G19: -86183.84946 | H19: 30.26523161 | I19: 202.4188415 | J19: 721.4347564 | K19: 21.0481106 | L19: 646.5400079 | M19: 1 | N19: CAPITAL | R19: 175444.3194 | T19: 0 | U19: 1 | V19: -28727.94982 | W19: 100.8841021 | X19: 202.4188403 | Y19: 240.4782519 | Z19: 7.016036901 | AA19: 215.5133363 | AB19: 1 | AC19: CAPITAL
D20: GENERAL | E20: -14720.43847 | F20: 2 | G20: -73935.46565 | H20: 25.22424477 | I20: 102.0456764 | J20: 633.0267955 | K20: 30.88985732 | L20: 639.4816289 | M20: 2 | N20: GENERAL | R20: 150566.783 | T20: 0 | U20: 2 | V20: -24645.15519 | W20: 84.08081275 | X20: 102.0456763 | Y20: 211.0089314 | Z20: 10.29661911 | AA20: 213.1605423 | AB20: 2 | AC20: GENERAL
D21: NON_DUR | E21: -11735.89039 | F21: 3 | G21: -63100.30437 | H21: 19.23829948 | I21: 143.4190292 | J21: 400.1152154 | K21: 25.19337639 | L21: 545.5781467 | M21: 3 | N21: NON_DUR | R21: 120039.5802 | T21: 0 | U21: 3 | V21: -21033.43476 | W21: 64.12766281 | X21: 143.4190278 | Y21: 133.3717383 | Z21: 8.397792127 | AA21: 181.8593815 | AB21: 3 | AC21: NON_DUR
D22: BOURGS | E22: 39751.36677 | F22: L | G22: -63767.65071 | H22: 20.00974006 | I22: 200.0913716 | J22: 894.8433234 | K22: 798.8022381 | L22: 202.2620995 | M22: L | N22: BOURGS | R22: 0 | T22: -99548.87165 | U22: L | V22: -21255.88356 | W22: 66.69913292 | X22: 200.0913704 | Y22: 298.281107 | Z22: 266.2674127 | AA22: 67.42070155 | AB22: L | AC22: BOURGS
D23: PRLTRT | E23: 3857.595657 | F23: N | G23: -22569.02548 | H23: 4.998788616 | I23: 99.99285792 | J23: 296.8745664 | K23: 0 | L23: 6735.419884 | M23: N | N23: PRLTRT | R23: 0 | T23: -9660.538825 | U23: N | V23: -7523.008476 | W23: 16.66262948 | X23: 99.99285681 | Y23: 98.95818852 | Z23: 0 | AA23: 2245.139959 | AB23: N | AC23: PRLTRT
G24: 0 | H24: 1 | I24: 2 | J24: 3 | K24: L | L24: N | V24: 0 | W24: 1 | X24: 2 | Y24: 3 | Z24: L | AA24: N
G26: VALUE | H26: CAPITAL | I26: GENERAL | J26: NON_DUR | K26: BOURGS | L26: PRLTRT | V26: VALUE | W26: CAPITAL | X26: GENERAL | Y26: NON_DUR | Z26: BOURGS | AA26: PRLTRT
B28: Prices & Values: | G28: 1.961676267 | H28: 1828.59807 | I28: 208.8096035 | J28: 44.94488854 | K28: 1094.512362 | L28: 19.56876664
G29: 1.998259463 | H29: 1898.739439 | I29: 217.2093716 | J29: 46.78065684 | K29: 1135.692871 | L29: 20.31004547 | M29: < Prices | V29: -0.0007281906483 | W29: -0.005130541571 | X29: -0.01345718877 | Y29: -0.02083620117 | Z29: 0.02213923429 | AA29: -1.093918506
E30: c | G30: 0 | H30: 1 | I30: 2 | J30: 3 | K30: L | L30: N | U30: B | V30: 0 | W30: 1 | X30: 2 | Y30: 3 | Z30: L | AA30: N
D31: MCP | E31: 1 | F31: 0 | G31: 1.998259447 | H31: 1898.739436 | I31: 217.2093706 | J31: 46.7806566 | K31: 0 | L31: 0 | M31: 0 | N31: MCP | T31: 0 | U31: 0 | V31: 103185.4324 | W31: -332.4491961 | X31: -747.9543076 | Y31: -982.0773787 | Z31: -292 | AA31: -2922 | AB31: 0
D32: CAPITAL | E32: 1.000000002 | F32: 1 | G32: 1.998259469 | H32: 1898.739445 | I32: 217.2093722 | J32: 46.78065696 | K32: 1135.692871 | L32: 20.31004552 | M32: 1 | N32: CAPITAL | S32: CAPITAL | T32: 0 | U32: 1 | V32: -28727.94981 | W32: 100.8840988 | X32: 202.4188385 | Y32: 240.4782515 | Z32: 7.016036939 | AA32: 215.5133366 | AB32: 1 | AC32: CAPITAL
D33: GENERAL | E33: 0.9999999986 | F33: 2 | G33: 1.998259463 | H33: 1898.739438 | I33: 217.2093711 | J33: 46.78065681 | K33: 1135.692869 | L33: 20.31004547 | M33: 2 | N33: GENERAL | S33: GENERAL | T33: 0 | U33: 2 | V33: -24645.15516 | W33: 84.08081092 | X33: 102.0456761 | Y33: 211.0089309 | Z33: 10.29661911 | AA33: 213.1605415 | AB33: 2 | AC33: GENERAL
D34: NON_DUR | E34: 0.9999999977 | F34: 3 | G34: 1.998259461 | H34: 1898.739436 | I34: 217.2093713 | J34: 46.78065673 | K34: 1135.692868 | L34: 20.31004545 | M34: 3 | N34: NON_DUR | S34: NON_DUR | T34: 0 | U34: 3 | V34: -21033.43472 | W34: 64.12766298 | X34: 143.4190259 | Y34: 133.3717381 | Z34: 8.397792126 | AA34: 181.8593806 | AB34: 3 | AC34: NON_DUR
D35: BOURGS | E35: 1 | F35: L | G35: 1.998259503 | H35: 1898.73945 | I35: 217.2093767 | J35: 46.78065838 | K35: 1135.692819 | L35: 20.31004495 | M35: L | N35: BOURGS | S35: BOURGS | T35: -99548.86736 | U35: L | V35: -21255.88355 | W35: 66.69913183 | X35: 200.0913689 | Y35: 298.2811062 | Z35: 266.2674126 | AA35: 67.42070344 | AB35: L | AC35: BOURGS
D36: PRLTRT | E36: 1.000000068 | F36: N | G36: 1.998259654 | H36: 1898.739558 | I36: 217.2093937 | J36: 46.78066088 | K36: 0 | L36: 20.31004627 | M36: N | N36: PRLTRT | S36: PRLTRT | T36: -9660.536519 | U36: N | V36: -7523.008456 | W36: 16.66263086 | X36: 99.9928555 | Y36: 98.95818821 | Z36: 0 | AA36: 2245.139956 | AB36: N | AC36: PRLTRT
G37: 0 | H37: 1 | I37: 2 | J37: 3 | K37: L | L37: N | V37: 0 | W37: 1 | X37: 2 | Y37: 3 | Z37: L | AA37: N
G39: VALUE | H39: CAPITAL | I39: GENERAL | J39: NON_DUR | K39: BOURGS | L39: PRLTRT | V39: VALUE | W39: CAPITAL | X39: GENERAL | Y39: NON_DUR | Z39: BOURGS | AA39: PRLTRT
B40: Utility Parameters:
G42: 9256006.149 | H42: -2265.721962 | I42: -19015.50142 | J42: -86285.35269 | K42: -2607.765277 | L42: -150931.9719 | V42: -0.0008639843161 | W42: -0.00517322184 | X42: -0.01345079274 | Y42: -0.02083456364 | Z42: 0.02213925938 | AA42: -1.093916173
E43: u | F43: U | G43: 0 | H43: 1 | I43: 2 | J43: 3 | K43: L | L43: N | U43: C | V43: 0 | W43: 1 | X43: 2 | Y43: 3 | Z43: L | AA43: N
E44: -18495901.88 | F44: 0 | G44: -1771691.57 | H44: 709.0221284 | I44: 5283.704347 | J44: 22000 | K44: 876 | L44: 8766 | M44: 0 | T44: 0 | U44: 0 | V44: 103185.4324 | W44: -332.449174 | X44: -747.954305 | Y44: -982.0773779 | Z44: -292 | AA44: -2922 | AB44: 0
D45: CAPITAL | E45: 6958420.288 | F45: 1 | G45: -2808530.18 | H45: 579.0221284 | I45: 5123.677045 | J45: 24008.40059 | K45: 997.6057642 | L45: 56314.33399 | M45: 1 | N45: CAPITAL | S45: CAPITAL | T45: 0 | U45: 1 | V45: -28727.9498 | W45: 100.8840998 | X45: 202.418836 | Y45: 240.4782512 | Z45: 7.016036978 | AA45: 215.5133369 | AB45: 1 | AC45: CAPITAL
D46: GENERAL | E46: 5925964.91 | F46: 2 | G46: -2391228.415 | H46: 493.6502202 | I46: 4433.704347 | J46: 20427.11809 | K46: 836.6047242 | L46: 47868.89871 | M46: 2 | N46: GENERAL | S46: GENERAL | T46: 0 | U46: 2 | V46: -24645.15512 | W46: 84.08081667 | X46: 102.0456755 | Y46: 211.0089303 | Z46: 10.29661911 | AA46: 213.1605406 | AB46: 2 | AC46: GENERAL
D47: NON_DUR | E47: 5359822.53 | F47: 3 | G47: -2167210.094 | H47: 450.2035597 | I47: 3960.215016 | J47: 18653.65259 | K47: 759.6559399 | L47: 43341.46156 | M47: 3 | N47: NON_DUR | S47: NON_DUR | T47: 0 | U47: 3 | V47: -21033.43467 | W47: 64.12767174 | X47: 143.4190234 | Y47: 133.3717378 | Z47: 8.397792124 | AA47: 181.8593797 | AB47: 3 | AC47: NON_DUR
D48: BOURGS | E48: 175912.9905 | F48: L | G48: -80133.82144 | H48: 17.85123189 | I48: 130.8709568 | J48: 641.8627332 | K48: -862.1011512 | L48: 3337.273201 | M48: L | N48: BOURGS | S48: BOURGS | T48: -99548.86025 | U48: L | V48: -21255.88354 | W48: 66.69913071 | X48: 200.0913669 | Y48: 298.2811053 | Z48: 266.2674125 | AA48: 67.42070544 | AB48: L | AC48: BOURGS
D49: PRLTRT | E49: 75781.16195 | F49: N | G49: -37212.06894 | H49: 15.97269368 | I49: 83.32970625 | J49: 554.3186888 | K49: 0 | L49: -8695.995576 | M49: N | N49: PRLTRT | S49: PRLTRT | T49: -9660.533119 | U49: N | V49: -7523.008435 | W49: 16.66263213 | X49: 99.99285394 | Y49: 98.9581879 | Z49: 0 | AA49: 2245.139954 | AB49: N | AC49: PRLTRT
G50: 0 | H50: 1 | I50: 2 | J50: 3 | K50: L | L50: N | V50: 0 | W50: 1 | X50: 2 | Y50: 3 | Z50: L | AA50: N
G52: VALUE | H52: CAPITAL | I52: GENERAL | J52: NON_DUR | K52: BOURGS | L52: PRLTRT | V52: VALUE | W52: CAPITAL | X52: GENERAL | Y52: NON_DUR | Z52: BOURGS | AA52: PRLTRT

Sheet Global
N2: 50
M3: TIME | N3: 50.01
N4: =N2+N3 -> 100.01
M5: SIMULATE UNTIL | N5: 100
H8: Global Economy
B11: Supply: | F11: VALUE | G11: CAPITAL | H11: GENERAL | I11: NON_DUR | J11: BOURGS | K11: PRLTRT | R11: Balance: | V11: VALUE | W11: CAPITAL | X11: GENERAL | Y11: NON_DUR | Z11: BOURGS | AA11: PRLTRT
E12: S > | F12: 0 | G12: 1 | H12: 2 | I12: 3 | J12: L | K12: N | U12: S - D - X > | V12: 0 | W12: 1 | X12: 2 | Y12: 3 | Z12: L | AA12: N
D13: GLOBAL | E13: 0 | F13: -928657.4029 | G13: 299.2042923 | H13: 2243.862933 | I13: 8838.696401 | J13: 231.3940344 | K13: 6101.751776 | L13: 0 | M13: GLOBAL | T13: GLOBAL | U13: 0 | V13: =F13-F20-F27 -> 0.1377420102 | W13: -2.940380625e-05 | X13: -0.000257033872 | Y13: -0.001193445512 | Z13: -2.240805611e-05 | AA13: -0.002163149958 | AB13: 0 | AC13: GLOBAL
D14: ECONOMY 1 | E14: 1 | F14: -309552.8854 | G14: 99.7347641 | H14: 747.9543119 | I14: 2946.23213 | J14: 77.13857884 | K14: 2033.553848 | L14: 1 | M14: ECONOMY 1 | T14: ECONOMY 1 | U14: 1 | V14: 0.04591406533 | W14: -9.801285259e-06 | X14: -8.567812563e-05 | Y14: -0.0003978160917 | Z14: -7.469352028e-06 | AA14: -0.0007210478479 | AB14: 1 | AC14: ECONOMY 1
D15: ECONOMY 2 | E15: 2 | F15: -309548.2203 | G15: 99.7347641 | H15: 747.9543087 | I15: 2946.23213 | J15: 77.05769366 | K15: 2037.617812 | L15: 2 | M15: ECONOMY 2 | T15: ECONOMY 2 | U15: 2 | V15: 0.04591337368 | W15: -9.801100859e-06 | X15: -8.567624661e-05 | Y15: -0.000397805808 | Z15: -7.469352099e-06 | AA15: -0.0007210717556 | AB15: 2 | AC15: ECONOMY 2
D16: ECONOMY 3 | E16: 3 | F16: -309556.2972 | G16: 99.7347641 | H16: 747.9543119 | I16: 2946.23214 | J16: 77.19776189 | K16: 2030.580116 | L16: 3 | M16: ECONOMY 3 | T16: ECONOMY 3 | U16: 3 | V16: =F16-F23-F30 -> 0.04591457116 | W16: -9.801420134e-06 | X16: -8.567949988e-05 | Y16: -0.0003978236132 | Z16: -7.469351985e-06 | AA16: -0.0007210303545 | AB16: 3 | AC16: ECONOMY 3
F17: 0 | G17: 1 | H17: 2 | I17: 3 | J17: L | K17: N | V17: 0 | W17: 1 | X17: 2 | Y17: 3 | Z17: L | AA17: N
B18: Demand: | F18: VALUE | G18: CAPITAL | H18: GENERAL | I18: NON_DUR | J18: BOURGS | K18: PRLTRT | R18: Market: | V18: VALUE | W18: CAPITAL | X18: GENERAL | Y18: NON_DUR | Z18: BOURGS | AA18: PRLTRT
E19: D > | F19: 0 | G19: 1 | H19: 2 | I19: 3 | J19: L | K19: N | U19: Mkt > | V19: 0 | W19: 1 | X19: 2 | Y19: 3 | Z19: L | AA19: N
D20: GLOBAL | E20: 0 | F20: -928657.5406 | G20: 299.2043217 | H20: 2243.86319 | I20: 8838.697595 | J20: 231.3940568 | K20: 6101.753939 | L20: 0 | M20: GLOBAL | T20: GLOBAL | U20: 0 | V20: -1.673470251e-10 | W20: -3.946052549e-05 | X20: -3.126388037e-12 | Y20: 1.47792889e-12 | Z20: 0 | AA20: 0 | AB20: 0 | AC20: GLOBAL
D21: ECONOMY 1 | E21: 1 | F21: -309552.9311 | G21: 99.73494191 | H21: 747.9558652 | I21: 2946.239351 | J21: 77.13135219 | K21: 2033.911949 | L21: 1 | M21: ECONOMY 1 | T21: ECONOMY 1 | U21: 1 | V21: -5.820766091e-11 | W21: -1.315350834e-05 | X21: -1.534772309e-12 | Y21: 6.821210263e-13 | Z21: 0 | AA21: 0 | AB21: 1 | AC21: ECONOMY 1
D22: ECONOMY 2 | E22: 2 | F22: -309548.2679 | G22: 99.73306546 | H22: 747.9394621 | I22: 2946.163189 | J22: 77.13135282 | K22: 2033.979387 | L22: 2 | M22: ECONOMY 2 | T22: ECONOMY 2 | U22: 2 | V22: -6.548361853e-11 | W22: -1.315350838e-05 | X22: -1.250555215e-12 | Y22: 5.684341886e-13 | Z22: 0 | AA22: 0 | AB22: 2 | AC22: ECONOMY 2
D23: ECONOMY 3 | E23: 3 | F23: -309556.3416 | G23: 99.73631434 | H23: 747.9678623 | I23: 2946.295055 | J23: 77.13135178 | K23: 2033.862604 | L23: 3 | M23: ECONOMY 3 | T23: ECONOMY 3 | U23: 3 | V23: -4.365574569e-11 | W23: -1.315350877e-05 | X23: -3.410605132e-13 | Y23: 2.273736754e-13 | Z23: 0 | AA23: 0 | AB23: 3 | AC23: ECONOMY 3
F24: 0 | G24: 1 | H24: 2 | I24: 3 | J24: L | K24: N | V24: 0 | W24: 1 | X24: 2 | Y24: 3 | Z24: L | AA24: N
B25: Exports: | F25: VALUE | G25: CAPITAL | H25: GENERAL | I25: NON_DUR | J25: BOURGS | K25: PRLTRT | V25: VALUE | W25: CAPITAL | X25: GENERAL | Y25: NON_DUR | Z25: BOURGS | AA25: PRLTRT
E26: X > | F26: 0 | G26: 1 | H26: 2 | I26: 3 | J26: L | K26: N | R26: Z: | U26: Z > | V26: 0 | W26: 1 | X26: 2 | Y26: 3 | Z26: L | AA26: N
D27: GLOBAL | E27: 0 | F27: 0 | G27: 0 | H27: 0 | I27: 0 | J27: 0 | K27: 0 | L27: 0 | M27: GLOBAL | T27: GLOBAL | U27: 0 | AB27: 0 | AC27: GLOBAL
D28: ECONOMY 1 | E28: 1 | F28: -0.000208252992 | G28: -0.0001680059176 | H28: -0.001467529084 | I28: -0.006822418589 | J28: 0.007234115284 | K28: -0.3573797639 | L28: 1 | M28: ECONOMY 1 | T28: ECONOMY 1 | U28: 1 | V28: ='Econ 1'!G44 -> -1771689.463 | W28: ='Econ 1'!H44 -> 709.0221284 | X28: ='Econ 1'!I44 -> 5283.704347 | Y28: ='Econ 1'!J44 -> 22000 | Z28: ='Econ 1'!K48 -> -862.1612163 | AA28: ='Econ 1'!L49 -> -8692.844195 | AB28: 1 | AC28: ECONOMY 1
D29: ECONOMY 2 | E29: 2 | F29: 0.001725452745 | G29: 0.001708441693 | H29: 0.01493217706 | I29: 0.06933908046 | J29: -0.0736516959 | K29: 3.639146747 | L29: 2 | M29: ECONOMY 2 | T29: ECONOMY 2 | U29: 2 | V29: ='Econ 2'!G44 -> -1771686.581 | W29: ='Econ 2'!H44 -> 709.0221284 | X29: ='Econ 2'!I44 -> 5283.704347 | Y29: ='Econ 2'!J44 -> 22000 | Z29: ='Econ 2'!K48 -> -862.2433069 | AA29: ='Econ 2'!L49 -> -8688.537367 | AB29: 2 | AC29: ECONOMY 2
D30: ECONOMY 3 | E30: 3 | F30: -0.00151719969 | G30: -0.001540435775 | H30: -0.01346464797 | I30: -0.06251666187 | J30: 0.06641758061 | K30: -3.281766983 | L30: 3 | M30: ECONOMY 3 | T30: ECONOMY 3 | U30: 3 | V30: ='Econ 3'!G44 -> -1771691.57 | W30: ='Econ 3'!H44 -> 709.0221284 | X30: ='Econ 3'!I44 -> 5283.704347 | Y30: ='Econ 3'!J44 -> 22000 | Z30: ='Econ 3'!K48 -> -862.1011512 | AA30: ='Econ 3'!L49 -> -8695.995576 | AB30: 3 | AC30: ECONOMY 3
F31: 0 | G31: 1 | H31: 2 | I31: 3 | J31: L | K31: N | V31: 0 | W31: 1 | X31: 2 | Y31: 3 | Z31: L | AA31: N
B32: Prices: | F32: VALUE | G32: CAPITAL | H32: GENERAL | I32: NON_DUR | J32: BOURGS | K32: PRLTRT | V32: VALUE | W32: CAPITAL | X32: GENERAL | Y32: NON_DUR | Z32: BOURGS | AA32: PRLTRT
E33: P > | F33: 0 | G33: 1 | H33: 2 | I33: 3 | J33: L | K33: N | Q33: Turnover Fractions: | U33: V > | V33: 0 | W33: 1 | X33: 2 | Y33: 3 | Z33: L | AA33: N
D34: GLOBAL | E34: 0 | F34: 1 | G34: 950.1966453 | H34: 108.6992833 | I34: 23.41070201 | J34: 568.3410445 | K34: 10.16386803 | L34: 0 | M34: GLOBAL | V34: 1 | W34: 0.1 | X34: 0.3333333333 | Y34: 1 | Z34: 1 | AA34: 1
D35: ECONOMY 1 | E35: 1 | F35: 2.003702769 | G35: 1903.911649 | H35: 217.801055 | I35: 46.90808845 | J35: 1138.786525 | K35: 20.36537051 | L35: 1 | M35: ECONOMY 1 | V35: 0 | W35: 1 | X35: 2 | Y35: 3 | Z35: L | AA35: N
D36: ECONOMY 2 | E36: 2 | F36: 1.976188844 | G36: 1877.76801 | H36: 214.8103111 | I36: 46.26396815 | J36: 1123.149232 | K36: 20.08572261 | L36: 2 | M36: ECONOMY 2 | V36: VALUE | W36: CAPITAL | X36: GENERAL | Y36: NON_DUR | Z36: BOURGS | AA36: PRLTRT
D37: ECONOMY 3 | E37: 3 | F37: 1.998259463 | G37: 1898.739439 | H37: 217.2093716 | I37: 46.78065684 | J37: 1135.692871 | K37: 20.31004547 | L37: 3 | M37: ECONOMY 3
F38: 0 | G38: 1 | H38: 2 | I38: 3 | J38: L | K38: N
F39: VALUE | G39: CAPITAL | H39: GENERAL | I39: NON_DUR | J39: BOURGS | K39: PRLTRT

Sheet Financial
N2: 5
P3: TIME | Q3: =Global!N3 -> 50.01
P5: SIMULATE UNTIL | Q5: =Global!N5 -> 100
Q6: (YRS)
I7: Financial Stocks and Flows: | X7: Financial Discriminants:
I8: (IN NATIVE CURRENCY UNITS & UNITS PER YEAR) | X8: (IN NATIVE CURRENCY UNITS PER YEAR)
B11: Economy #1:
E12: CAPITAL | H12: DIVIDENDS | K12: NET CASH | M12: MATURING | O12: SAVINGS | AA12: u + e
B13: P01 > | C13: 2.003702769 | E13: ACCOUNTS | G13: GENERATED | I13: RECEIVED | K13: FLOWS | M13: INVESTMENTS | O13: BALANCES | U13: b | W13: q | Y13: z | AA13: h | AC13: Q | AE13: Q
E14: -447265.7771 | F14: 0 | G14: =-SUM(G15:G19) -> 43727.76309 | H14: 0 | I14: =-SUM(I15:I19) -> -43727.76309 | J14: 0 | K14: -0.0004172770714 | L14: 0 | M14: 0 | N14: 0 | O14: 328975.4815 | V14: 0 | X14: 0 | Z14: 0 | AA14: 0 | AB14: 0 | AC14: 0 | AD14: 0 | AE14: 0
B15: -i > | C15: 0.0977668432 | D15: CAPITAL | E15: 175922.2508 | F15: 1 | G15: -17199.3631 | H15: 1 | I15: 0 | J15: 1 | K15: 17199.35993 | L15: 1 | M15: 0 | N15: 1 | O15: 0 | P15: CAPITAL | T15: CAPITAL | U15: 1160029.306 | V15: 1 | W15: 1160029.303 | X15: 1 | Y15: 1160029.308 | Z15: 1 | AA15: 1160029.304 | AB15: 1 | AC15: 567667.7252 | AD15: 1 | AE15: 578942.8055 | AF15: CAPITAL
D16: GENERAL | E16: 150976.945 | F16: 2 | G16: -14760.53931 | H16: 2 | I16: 0 | J16: 2 | K16: 14760.53656 | L16: 2 | M16: 0 | N16: 2 | O16: 0 | P16: GENERAL | T16: GENERAL | U16: 987891.1376 | V16: 2 | W16: 987891.13 | X16: 2 | Y16: 987891.1431 | Z16: 2 | AA16: 987891.1398 | AB16: 2 | AC16: 483285.9509 | AD16: 2 | AE16: 493032.7717 | AF16: GENERAL
B17: Term > | C17: 7.193188023 | D17: NON_DUR | E17: 120366.5813 | F17: 3 | G17: -11767.86068 | H17: 3 | I17: 0 | J17: 3 | K17: 11767.85797 | L17: 3 | M17: 0 | N17: 3 | O17: 0 | P17: NON_DUR | T17: NON_DUR | U17: 893775.825 | V17: 3 | W17: 893775.8353 | X17: 3 | Y17: 893775.8286 | Z17: 3 | AA17: 893775.8254 | AB17: 3 | AC17: 438364.1203 | AD17: 3 | AE17: 446062.0851 | AF17: NON_DUR
D18: BOURGS | E18: 0 | F18: L | G18: 0 | H18: L | I18: 39931.07108 | J18: L | K18: -39931.06507 | L18: L | M18: -41763.39442 | N18: L | O18: -300411.9673 | P18: BOURGS | T18: BOURGS | U18: 72084.9506 | V18: L | W18: 72084.94756 | X18: L | Y18: 72084.95375 | Z18: L | AA18: 72084.95046 | AB18: L | AC18: 35279.33337 | AD18: L | AE18: 35975.86861 | AF18: BOURGS
B19: -k/g > | C19: =-E14/O14 -> 1.359571768 | D19: PRLTRT | E19: 0 | F19: N | G19: 0 | H19: N | I19: 3796.692008 | J19: N | K19: -3796.688972 | L19: N | M19: -3970.91038 | N19: N | O19: -28563.51421 | P19: PRLTRT | T19: PRLTRT | U19: 39924.23425 | V19: N | W19: 39924.2285 | X19: N | Y19: 39924.23248 | Z19: N | AA19: 39924.23134 | AB19: N | AC19: 19550.81978 | AD19: N | AE19: 19925.225 | AF19: PRLTRT
B20: leverage | E20: k, $ | G20: e (-), $/yr | I20: e (+), $/yr | K20: -r, $/yr | M20: g/T, $/yr | O20: g, $ | U20: $/year | W20: $/year | Y20: $/year | AA20: $/year | AC20: G/year | AE20: G/year
B22: Economy #2:
E23: CAPITAL | H23: DIVIDENDS | K23: NET CASH | M23: MATURING | O23: SAVINGS | AA23: u + e
B24: P02 > | C24: 1.976188844 | E24: ACCOUNTS | G24: GENERATED | I24: RECEIVED | K24: FLOWS | M24: INVESTMENTS | O24: BALANCES | U24: b | W24: q | Y24: z | AA24: h | AC24: Q | AE24: Q
E25: -441124.191 | F25: 0 | G25: =-SUM(G26:G30) -> 43127.31327 | H25: 0 | I25: =-SUM(I26:I30) -> -43127.31327 | J25: 0 | K25: 0.003409820543 | L25: 0 | M25: 0 | N25: 0 | O25: 330824.9553 | V25: 0 | X25: 0 | Z25: 0 | AA25: 0 | AB25: 0 | AC25: 0 | AD25: 0 | AE25: 0
B26: -i > | C26: 0.09776682886 | D26: CAPITAL | E26: 173506.5926 | F26: 1 | G26: -16963.18934 | H26: 1 | I26: 0 | J26: 1 | K26: 16963.18509 | L26: 1 | M26: 0 | N26: 1 | O26: 0 | P26: CAPITAL | T26: CAPITAL | U26: 1144100.315 | V26: 1 | W26: 1144100.314 | X26: 1 | Y26: 1144100.319 | Z26: 1 | AA26: 1144100.315 | AB26: 1 | AC26: 567667.7252 | AD26: 1 | AE26: 578942.8055 | AF26: CAPITAL
D27: GENERAL | E27: 148903.8183 | F27: 2 | G27: -14557.85412 | H27: 2 | I27: 0 | J27: 2 | K27: 14557.84932 | L27: 2 | M27: 0 | N27: 2 | O27: 0 | P27: GENERAL | T27: GENERAL | U27: 974325.8727 | V27: 2 | W27: 974325.901 | X27: 2 | Y27: 974325.8769 | Z27: 2 | AA27: 974325.8729 | AB27: 2 | AC27: 485042.7814 | AD27: 2 | AE27: 493032.7908 | AF27: GENERAL
B28: Term > | C28: 6.817186066 | D28: NON_DUR | E28: 118713.7801 | F28: 3 | G28: -11606.26982 | H28: 3 | I28: 0 | J28: 3 | K28: 11606.26639 | L28: 3 | M28: 0 | N28: 3 | O28: 0 | P28: NON_DUR | T28: NON_DUR | U28: 881502.9055 | V28: 3 | W28: 881502.9165 | X28: 3 | Y28: 881502.9099 | Z28: 3 | AA28: 881502.9068 | AB28: 3 | AC28: 438364.1203 | AD28: 3 | AE28: 446062.0851 | AF28: NON_DUR
D29: BOURGS | E29: 0 | F29: L | G29: 0 | H29: L | I29: 39479.01755 | J29: L | K29: -39479.01152 | L29: L | M29: -44422.91187 | N29: L | O29: -302839.2734 | P29: BOURGS | T29: BOURGS | U29: 71096.46734 | V29: L | W29: 71096.46409 | X29: L | Y29: 71096.47014 | Z29: L | AA29: 71096.46694 | AB29: L | AC29: 35302.62201 | AD29: L | AE29: 35976.55371 | AF29: BOURGS
B30: -k/g > | C30: =-E25/O25 -> 1.333406637 | D30: PRLTRT | E30: 0 | F30: N | G30: 0 | H30: N | I30: 3648.295724 | J30: N | K30: -3648.292685 | L30: N | M30: -4105.164945 | N30: N | O30: -27985.68191 | P30: PRLTRT | T30: PRLTRT | U30: 39371.13521 | V30: N | W30: 39371.12925 | X30: N | Y30: 39371.1332 | Z30: N | AA30: 39371.1321 | AB30: N | AC30: 19559.72522 | AD30: N | AE30: 19922.75656 | AF30: PRLTRT
B31: leverage | E31: k, ¥ | G31: e (-), ¥/yr | I31: e (+), ¥/yr | K31: -r, ¥/yr | M31: g/T, ¥/yr | O31: g, ¥ | U31: ¥/year | W31: ¥/year | Y31: ¥/year | AA31: ¥/year | AC31: G/year | AE31: G/year
B33: Economy #3:
E34: CAPITAL | H34: DIVIDENDS | K34: NET CASH | M34: MATURING | O34: SAVINGS | AA34: u + e
B35: P03 > | C35: 1.998259463 | E35: ACCOUNTS | G35: GENERATED | I35: RECEIVED | K35: FLOWS | M35: INVESTMENTS | O35: BALANCES | U35: b | W35: q | Y35: z | AA35: h | AC35: Q | AE35: Q
E36: -446050.6826 | F36: 0 | G36: =-SUM(G37:G41) -> 43608.97137 | H36: 0 | I36: =-SUM(I37:I41) -> -43608.97137 | J36: 0 | K36: -0.003031758621 | L36: 0 | M36: 0 | N36: 0 | O36: 327628.2077 | V36: 0 | X36: 0 | Z36: 0 | AA36: 0 | AB36: 0 | AC36: 0 | AD36: 0 | AE36: 0
B37: -i > | C37: 0.09776685269 | D37: CAPITAL | E37: 175444.3194 | F37: 1 | G37: -17152.63892 | H37: 1 | I37: 0 | J37: 1 | K37: 17152.6366 | L37: 1 | M37: 0 | N37: 1 | O37: 0 | P37: CAPITAL | T37: CAPITAL | U37: 1156877.944 | V37: 1 | W37: 1156877.94 | X37: 1 | Y37: 1156877.946 | Z37: 1 | AA37: 1156877.941 | AB37: 1 | AC37: 567667.7252 | AD37: 1 | AE37: 578942.8055 | AF37: CAPITAL
D38: GENERAL | E38: 150566.783 | F38: 2 | G38: -14720.44049 | H38: 2 | I38: 0 | J38: 2 | K38: 14720.43847 | L38: 2 | M38: 0 | N38: 2 | O38: 0 | P38: GENERAL | T38: GENERAL | U38: 985207.4102 | V38: 2 | W38: 985207.4019 | X38: 2 | Y38: 985207.415 | Z38: 2 | AA38: 985207.4116 | AB38: 2 | AC38: 483285.9509 | AD38: 2 | AE38: 493032.7717 | AF38: GENERAL
B39: Term > | C39: 7.219880154 | D39: NON_DUR | E39: 120039.5802 | F39: 3 | G39: -11735.89195 | H39: 3 | I39: 0 | J39: 3 | K39: 11735.89039 | L39: 3 | M39: 0 | N39: 3 | O39: 0 | P39: NON_DUR | T39: NON_DUR | U39: 891347.7711 | V39: 3 | W39: 891347.7559 | X39: 3 | Y39: 891347.7758 | Z39: 3 | AA39: 891347.7731 | AB39: 3 | AC39: 437200.548 | AD39: 3 | AE39: 446062.0716 | AF39: NON_DUR
D40: BOURGS | E40: 0 | F40: L | G40: 0 | H40: L | I40: 39751.37272 | J40: L | K40: -39751.36677 | L40: L | M40: -41364.47895 | N40: L | O40: -298646.5993 | P40: BOURGS | T40: BOURGS | U40: 71888.12107 | V40: L | W40: 71888.11816 | X40: L | Y40: 71888.12436 | Z40: L | AA40: 71888.12107 | AB40: L | AC40: 35265.09493 | AD40: L | AE40: 35975.3673 | AF40: BOURGS
B41: -k/g > | C41: =-E36/O36 -> 1.361453843 | D41: PRLTRT | E41: 0 | F41: N | G41: 0 | H41: N | I41: 3857.598653 | J41: N | K41: -3857.595657 | L41: N | M41: -4014.138559 | N41: N | O41: -28981.60846 | P41: PRLTRT | T41: PRLTRT | U41: 39819.38302 | V41: N | W41: 39819.37751 | X41: N | Y41: 39819.38145 | Z41: N | AA41: 39819.3803 | AB41: N | AC41: 19545.3913 | AD41: N | AE41: 19927.03062 | AF41: PRLTRT
B42: leverage | E42: k, € | G42: e (-), €/yr | I42: e (+), €/yr | K42: -r, €/yr | M42: g/T, €/yr | O42: g, € | U42: €/year | W42: €/year | Y42: €/year | AA42: €/year | AC42: G/year | AE42: G/year

Sheet Initial
H10: Economy #1: | K10: -0.09997797224 | M10: i
B11: State Variables:
K12: 6.752143404 | M12: Term
B14: Investment | D14: Saving | F14: VALUE | G14: CAPITAL | H14: GENERAL | I14: NON_DUR | J14: BOURGS | K14: PRLTRT
F16: 1.648856481e-10 | G16: 0.7220800429 | H16: -31.36663145 | I16: 36.58969732 | J16: 0.2399208183 | K16: 7.361852392
B17: k | D17: g | E17: A | F17: 0 | G17: 1 | H17: 2 | I17: 3 | J17: L | K17: N
B18: -452129.3313 | D18: 0 | E18: 0 | F18: 102849.3867 | G18: -333.4725741 | H18: -743.4410449 | I18: -1073.566152 | J18: -292 | K18: -2922 | L18: 0
B19: 171557.4311 | D19: 0 | E19: 1 | F19: -28254.91877 | G19: 99.86075927 | H19: 209.3166752 | I19: 256.0574117 | J19: 6.605213135 | K19: 197.2231854 | L19: 1 | M19: CAPITAL
B20: 143967.4567 | D20: 0 | E20: 2 | F20: -24003.44168 | G20: 82.69129011 | H20: 106.5589551 | I20: 222.1686383 | J20: 9.86021048 | K20: 192.7437357 | L20: 2 | M20: GENERAL
B21: 136604.4435 | D21: 0 | E21: 3 | F21: -22343.48739 | G21: 66.87660761 | H21: 158.0270418 | I21: 159.7671816 | J21: 8.672255849 | K21: 200.8224666 | L21: 3 | M21: NON_DUR
B22: 0 | D22: -101069.4102 | E22: L | F22: -20849.8408 | G22: 66.65197671 | H22: 200.5631814 | I22: 299.3160682 | J22: 266.6223997 | K22: 66.43768181 | L22: L | M22: BOURGS
B23: 0 | D23: -11602.81367 | E23: N | F23: -7397.698045 | G23: 16.66986033 | H23: 100.3418229 | I23: 99.66715471 | J23: 0 | K23: 2257.411078 | L23: N | M23: PRLTRT
F24: 0 | G24: 1 | H24: 2 | I24: 3 | J24: L | K24: N
F26: VALUE | G26: CAPITAL | H26: GENERAL | I26: NON_DUR | J26: BOURGS | K26: PRLTRT
F29: 1.046422781e-10 | G29: 0.7220800429 | H29: -31.36663145 | I29: 36.58969732 | J29: 0.2399208183 | K29: 7.361852392
E30: B | F30: 0 | G30: 1 | H30: 2 | I30: 3 | J30: L | K30: N
D31: 0 | E31: 0 | F31: 102849.3867 | G31: -333.4725741 | H31: -743.4410449 | I31: -1073.566152 | J31: -292 | K31: -2922 | L31: 0
C32: CAPITAL | D32: 0 | E32: 1 | F32: -28254.91877 | G32: 99.86075927 | H32: 209.3166752 | I32: 256.0574117 | J32: 6.605213135 | K32: 197.2231854 | L32: 1 | M32: CAPITAL
C33: GENERAL | D33: 0 | E33: 2 | F33: -24003.44168 | G33: 82.69129011 | H33: 106.5589551 | I33: 222.1686383 | J33: 9.86021048 | K33: 192.7437357 | L33: 2 | M33: GENERAL
C34: NON_DUR | D34: 0 | E34: 3 | F34: -22343.48739 | G34: 66.87660761 | H34: 158.0270418 | I34: 159.7671816 | J34: 8.672255849 | K34: 200.8224666 | L34: 3 | M34: NON_DUR
C35: BOURGS | D35: -101069.4102 | E35: L | F35: -20849.8408 | G35: 66.65197671 | H35: 200.5631814 | I35: 299.3160682 | J35: 266.6223997 | K35: 66.43768181 | L35: L | M35: BOURGS
C36: PRLTRT | D36: -11602.81367 | E36: N | F36: -7397.698045 | G36: 16.66986033 | H36: 100.3418229 | I36: 99.66715471 | J36: 0 | K36: 2257.411078 | L36: N | M36: PRLTRT
F37: 0 | G37: 1 | H37: 2 | I37: 3 | J37: L | K37: N
F39: VALUE | G39: CAPITAL | H39: GENERAL | I39: NON_DUR | J39: BOURGS | K39: PRLTRT
F42: 5.354322451e-11 | G42: 0.7220800429 | H42: -31.36663145 | I42: 36.58969732 | J42: 0.2399208183 | K42: 7.361852392
E43: C | F43: 0 | G43: 1 | H43: 2 | I43: 3 | J43: L | K43: N
D44: 0 | E44: 0 | F44: 102849.3867 | G44: -333.4725741 | H44: -743.4410449 | I44: -1073.566152 | J44: -292 | K44: -2922 | L44: 0
C45: CAPITAL | D45: 0 | E45: 1 | F45: -28254.91877 | G45: 99.86075927 | H45: 209.3166752 | I45: 256.0574117 | J45: 6.605213135 | K45: 197.2231854 | L45: 1 | M45: CAPITAL
C46: GENERAL | D46: 0 | E46: 2 | F46: -24003.44168 | G46: 82.69129011 | H46: 106.5589551 | I46: 222.1686383 | J46: 9.86021048 | K46: 192.7437357 | L46: 2 | M46: GENERAL
C47: NON_DUR | D47: 0 | E47: 3 | F47: -22343.48739 | G47: 66.87660761 | H47: 158.0270418 | I47: 159.7671816 | J47: 8.672255849 | K47: 200.8224666 | L47: 3 | M47: NON_DUR
C48: BOURGS | D48: -101069.4102 | E48: L | F48: -20849.8408 | G48: 66.65197671 | H48: 200.5631814 | I48: 299.3160682 | J48: 266.6223997 | K48: 66.43768181 | L48: L | M48: BOURGS
C49: PRLTRT | D49: -11602.81367 | E49: N | F49: -7397.698045 | G49: 16.66986033 | H49: 100.3418229 | I49: 99.66715471 | J49: 0 | K49: 2257.411078 | L49: N | M49: PRLTRT
F50: 0 | G50: 1 | H50: 2 | I50: 3 | J50: L | K50: N
F52: VALUE | G52: CAPITAL | H52: GENERAL | I52: NON_DUR | J52: BOURGS | K52: PRLTRT | W52: VALUE | X52: CAPITAL | Y52: GENERAL | Z52: NON_DUR | AA52: BOURGS | AB52: PRLTRT
B53: Utility Parameters:
F55: 9080846.418 | G55: -2265.721962 | H55: -19015.50142 | I55: -86639.00528 | J55: -2606.768668 | K55: -150895.857
D56: u | E56: U | F56: 0 | G56: 1 | H56: 2 | I56: 3 | J56: L | K56: N | U56: h | V56: H | W56: 0 | X56: 1 | Y56: 2 | Z56: 3 | AA56: L | AB56: N
D57: -18345019.32 | E57: 0 | F57: -1743035.803 | G57: 709.0221284 | H57: 5283.704347 | I57: 22353.65259 | J57: 876 | K57: 8766 | L57: 0 | V57: 0 | X57: 1 | Y57: 1 | Z57: 1 | AA57: 0 | AB57: 0 | AC57: 0
C58: CAPITAL | D58: 6897926.005 | E58: 1 | F58: -2753573.87 | G58: 579.0221284 | H58: 5123.677045 | I58: 24008.40059 | J58: 997.6057642 | K58: 56314.33399 | L58: 1 | M58: CAPITAL | T58: CAPITAL | U58: 6 | V58: 1 | W58: -5 | X58: 1 | Y58: 1 | Z58: 1 | AA58: 1 | AB58: 1 | AC58: 1 | AD58: CAPITAL
C59: GENERAL | D59: 5872365.196 | E59: 2 | F59: -2344419.429 | G59: 493.6502202 | H59: 4433.704347 | I59: 20427.11809 | J59: 836.6047242 | K59: 47868.89871 | L59: 2 | M59: GENERAL | T59: GENERAL | U59: 6 | V59: 2 | W59: -5 | X59: 1 | Y59: 1 | Z59: 1 | AA59: 1 | AB59: 1 | AC59: 2 | AD59: GENERAL
C60: NON_DUR | D60: 5327125.729 | E60: 3 | F60: -2124790.14 | G60: 450.2035597 | H60: 3960.215016 | I60: 18653.65259 | J60: 759.6559399 | K60: 43341.46156 | L60: 3 | M60: NON_DUR | T60: NON_DUR | U60: 6 | V60: 3 | W60: -5 | X60: 1 | Y60: 1 | Z60: 1 | AA60: 1 | AB60: 1 | AC60: 3 | AD60: NON_DUR
C61: BOURGS | D61: 173264.6447 | E61: L | F61: -78567.81105 | G61: 17.85123189 | H61: 130.8709568 | I61: 641.8627332 | J61: -863.0977604 | K61: 3337.273201 | L61: L | M61: BOURGS | T61: BOURGS | U61: 3 | V61: L | W61: -4 | X61: 1 | Y61: 1 | Z61: 1 | AA61: -1 | AB61: 1 | AC61: L | AD61: BOURGS
C62: PRLTRT | D62: 74337.7399 | E62: N | F62: -36459.36521 | G62: 15.97269368 | H62: 83.32970625 | I62: 554.3186888 | J62: 0 | K62: -8732.110413 | L62: N | M62: PRLTRT | T62: PRLTRT | U62: 2 | V62: N | W62: -3 | X62: 1 | Y62: 1 | Z62: 1 | AA62: 0 | AB62: -1 | AC62: N | AD62: PRLTRT
F63: 0 | G63: 1 | H63: 2 | I63: 3 | J63: L | K63: N | W63: 0 | X63: 1 | Y63: 2 | Z63: 3 | AA63: L | AB63: N
F65: VALUE | G65: CAPITAL | H65: GENERAL | I65: NON_DUR | J65: BOURGS | K65: PRLTRT
W66: VALUE | X66: CAPITAL | Y66: GENERAL | Z66: NON_DUR | AA66: BOURGS | AB66: PRLTRT
H71: Economy #2: | K71: -0.10410466 | M71: i
B72: State Variables:
K73: 7.739699273 | M73: Term
B75: Investment | D75: Saving | F75: VALUE | G75: CAPITAL | H75: GENERAL | I75: NON_DUR | J75: BOURGS | K75: PRLTRT
F77: -9.750434633e-10 | G77: -5.675329237 | H77: 51.61724005 | I77: 10.56162018 | J77: -1.746582071 | K77: -57.13036122
B78: k | D78: g | E78: A | F78: 0 | G78: 1 | H78: 2 | I78: 3 | J78: L | K78: N
B79: -486648.6648 | D79: 0 | E79: 0 | F79: 105817.3945 | G79: -333.4725741 | H79: -843.2320317 | I79: -1073.566152 | J79: -292 | K79: -2922 | L79: 0
B80: 170638.4551 | D80: 0 | E80: 1 | F80: -28254.91877 | G80: 99.86075927 | H80: 209.3166752 | I80: 256.0574117 | J80: 6.605213135 | K80: 197.2231854 | L80: 1 | M80: CAPITAL
B81: 180137.5107 | D81: 0 | E81: 2 | F81: -26931.49253 | G81: 88.97357591 | H81: 123.0636208 | I81: 247.7283317 | J81: 10.90978983 | K81: 251.4483844 | L81: 2 | M81: GENERAL
B82: 135872.699 | D82: 0 | E82: 3 | F82: -22343.48739 | G82: 66.87660761 | H82: 158.0270418 | I82: 159.7671816 | J82: 8.672255849 | K82: 200.8224666 | L82: 3 | M82: NON_DUR
B83: 0 | D83: -101814.4544 | E83: L | F83: -20880.89233 | G83: 66.73525505 | H83: 200.7819682 | I83: 299.654889 | J83: 267.5593233 | K83: 67.21587402 | L83: L | M83: BOURGS
B84: 0 | D84: -11622.2815 | E84: N | F84: -7406.603481 | G84: 16.70170546 | H84: 100.4254856 | I84: 99.7967177 | J84: 0 | K84: 2262.420451 | L84: N | M84: PRLTRT
F85: 0 | G85: 1 | H85: 2 | I85: 3 | J85: L | K85: N
F87: VALUE | G87: CAPITAL | H87: GENERAL | I87: NON_DUR | J87: BOURGS | K87: PRLTRT
F90: -9.566618877e-10 | G90: -5.675329237 | H90: 51.61724005 | I90: 10.56162018 | J90: -1.746582071 | K90: -57.13036122
E91: B | F91: 0 | G91: 1 | H91: 2 | I91: 3 | J91: L | K91: N
D92: 0 | E92: 0 | F92: 105817.3945 | G92: -333.4725741 | H92: -843.2320317 | I92: -1073.566152 | J92: -292 | K92: -2922 | L92: 0
C93: CAPITAL | D93: 0 | E93: 1 | F93: -28254.91877 | G93: 99.86075927 | H93: 209.3166752 | I93: 256.0574117 | J93: 6.605213135 | K93: 197.2231854 | L93: 1 | M93: CAPITAL
C94: GENERAL | D94: 0 | E94: 2 | F94: -26931.49253 | G94: 88.97357591 | H94: 123.0636208 | I94: 247.7283317 | J94: 10.90978983 | K94: 251.4483844 | L94: 2 | M94: GENERAL
C95: NON_DUR | D95: 0 | E95: 3 | F95: -22343.48739 | G95: 66.87660761 | H95: 158.0270418 | I95: 159.7671816 | J95: 8.672255849 | K95: 200.8224666 | L95: 3 | M95: NON_DUR
C96: BOURGS | D96: -101814.4544 | E96: L | F96: -20880.89233 | G96: 66.73525505 | H96: 200.7819682 | I96: 299.654889 | J96: 267.5593233 | K96: 67.21587402 | L96: L | M96: BOURGS
C97: PRLTRT | D97: -11622.2815 | E97: N | F97: -7406.603481 | G97: 16.70170546 | H97: 100.4254856 | I97: 99.7967177 | J97: 0 | K97: 2262.420451 | L97: N | M97: PRLTRT
F98: 0 | G98: 1 | H98: 2 | I98: 3 | J98: L | K98: N
F100: VALUE | G100: CAPITAL | H100: GENERAL | I100: NON_DUR | J100: BOURGS | K100: PRLTRT
F103: -9.788797803e-10 | G103: -5.675329237 | H103: 51.61724005 | I103: 10.56162018 | J103: -1.746582071 | K103: -57.13036122
E104: C | F104: 0 | G104: 1 | H104: 2 | I104: 3 | J104: L | K104: N
D105: 0 | E105: 0 | F105: 105817.3945 | G105: -333.4725741 | H105: -843.2320317 | I105: -1073.566152 | J105: -292 | K105: -2922 | L105: 0
C106: CAPITAL | D106: 0 | E106: 1 | F106: -28254.91877 | G106: 99.86075927 | H106: 209.3166752 | I106: 256.0574117 | J106: 6.605213135 | K106: 197.2231854 | L106: 1 | M106: CAPITAL
C107: GENERAL | D107: 0 | E107: 2 | F107: -26931.49253 | G107: 88.97357591 | H107: 123.0636208 | I107: 247.7283317 | J107: 10.90978983 | K107: 251.4483844 | L107: 2 | M107: GENERAL
C108: NON_DUR | D108: 0 | E108: 3 | F108: -22343.48739 | G108: 66.87660761 | H108: 158.0270418 | I108: 159.7671816 | J108: 8.672255849 | K108: 200.8224666 | L108: 3 | M108: NON_DUR
C109: BOURGS | D109: -101814.4544 | E109: L | F109: -20880.89233 | G109: 66.73525505 | H109: 200.7819682 | I109: 299.654889 | J109: 267.5593233 | K109: 67.21587402 | L109: L | M109: BOURGS
C110: PRLTRT | D110: -11622.2815 | E110: N | F110: -7406.603481 | G110: 16.70170546 | H110: 100.4254856 | I110: 99.7967177 | J110: 0 | K110: 2262.420451 | L110: N | M110: PRLTRT
F111: 0 | G111: 1 | H111: 2 | I111: 3 | J111: L | K111: N
F113: VALUE | G113: CAPITAL | H113: GENERAL | I113: NON_DUR | J113: BOURGS | K113: PRLTRT
B114: Utility Parameters: | W114: VALUE | X114: CAPITAL | Y114: GENERAL | Z114: NON_DUR | AA114: BOURGS | AB114: PRLTRT
F116: 9091475.078 | G116: -2265.721962 | H116: -19131.79707 | I116: -86639.00528 | J116: -2603.916157 | K116: -150879.9362
D117: u | E117: U | F117: 0 | G117: 1 | H117: 2 | I117: 3 | J117: L | K117: N
D118: -19022141.92 | E118: 0 | F118: -1753664.463 | G118: 709.0221284 | H118: 5400 | I118: 22353.65259 | J118: 876 | K118: 8766 | L118: 0 | U118: h | V118: H | W118: 0 | X118: 1 | Y118: 2 | Z118: 3 | AA118: L | AB118: N
C119: CAPITAL | D119: 7144169.561 | E119: 1 | F119: -2753573.87 | G119: 579.0221284 | H119: 5123.677045 | I119: 24008.40059 | J119: 997.6057642 | K119: 56314.33399 | L119: 1 | M119: CAPITAL | V119: 0 | X119: 1 | Y119: 1 | Z119: 1 | AA119: 0 | AB119: 0 | AC119: 0
C120: GENERAL | D120: 6107898.786 | E120: 2 | F120: -2344419.429 | G120: 493.6502202 | H120: 4433.704347 | I120: 20427.11809 | J120: 836.6047242 | K120: 47868.89871 | L120: 2 | M120: GENERAL | T120: CAPITAL | U120: 6 | V120: 1 | W120: -5 | X120: 1 | Y120: 1 | Z120: 1 | AA120: 1 | AB120: 1 | AC120: 1 | AD120: CAPITAL
C121: NON_DUR | D121: 5517294.54 | E121: 3 | F121: -2124790.14 | G121: 450.2035597 | H121: 3960.215016 | I121: 18653.65259 | J121: 759.6559399 | K121: 43341.46156 | L121: 3 | M121: NON_DUR | T121: GENERAL | U121: 6 | V121: 2 | W121: -5 | X121: 1 | Y121: 1 | Z121: 1 | AA121: 1 | AB121: 1 | AC121: 2 | AD121: GENERAL
C122: BOURGS | D122: 176119.8701 | E122: L | F122: -78567.81105 | G122: 17.85123189 | H122: 130.8709568 | I122: 641.8627332 | J122: -865.9502709 | K122: 3337.273201 | L122: L | M122: BOURGS | T122: NON_DUR | U122: 6 | V122: 3 | W122: -5 | X122: 1 | Y122: 1 | Z122: 1 | AA122: 1 | AB122: 1 | AC122: 3 | AD122: NON_DUR
C123: PRLTRT | D123: 76659.16586 | E123: N | F123: -36459.36521 | G123: 15.97269368 | H123: 83.32970625 | I123: 554.3186888 | J123: 0 | K123: -8748.031259 | L123: N | M123: PRLTRT | T123: BOURGS | U123: 3 | V123: L | W123: -4 | X123: 1 | Y123: 1 | Z123: 1 | AA123: -1 | AB123: 1 | AC123: L | AD123: BOURGS
F124: 0 | G124: 1 | H124: 2 | I124: 3 | J124: L | K124: N | T124: PRLTRT | U124: 2 | V124: N | W124: -3 | X124: 1 | Y124: 1 | Z124: 1 | AA124: 0 | AB124: -1 | AC124: N | AD124: PRLTRT
W125: 0 | X125: 1 | Y125: 2 | Z125: 3 | AA125: L | AB125: N
F126: VALUE | G126: CAPITAL | H126: GENERAL | I126: NON_DUR | J126: BOURGS | K126: PRLTRT
W128: VALUE | X128: CAPITAL | Y128: GENERAL | Z128: NON_DUR | AA128: BOURGS | AB128: PRLTRT
H132: Economy #3: | K132: -0.09750256118 | M132: i
B133: State Variables:
K134: 5.903820356 | M134: Term
B136: Investment | D136: Saving | F136: VALUE | G136: CAPITAL | H136: GENERAL | I136: NON_DUR | J136: BOURGS | K136: PRLTRT
F138: 8.091598645e-10 | G138: 4.953249194 | H138: -20.2506086 | I138: -47.1513175 | J138: 1.506661253 | K138: 49.76850882
B139: k | D139: g | E139: A | F139: 0 | G139: 1 | H139: 2 | I139: 3 | J139: L | K139: N
B140: -427621.2622 | D140: 0 | E140: 0 | F140: 100885.6864 | G140: -333.4725741 | H140: -743.4410449 | I140: -972.6104814 | J140: -292 | K140: -2922 | L140: 0
B141: 170817.8809 | D141: 0 | E141: 1 | F141: -28254.91877 | G141: 99.86075927 | H141: 209.3166752 | I141: 256.0574117 | J141: 6.605213135 | K141: 197.2231854 | L141: 1 | M141: CAPITAL
B142: 143346.8415 | D142: 0 | E142: 2 | F142: -24003.44168 | G142: 82.69129011 | H142: 106.5589551 | I142: 222.1686383 | J142: 9.86021048 | K142: 192.7437357 | L142: 2 | M142: GENERAL
B143: 113456.5398 | D143: 0 | E143: 3 | F143: -20404.2002 | G143: 62.7157658 | H143: 147.0957812 | I143: 142.8386552 | J143: 7.977105428 | K143: 161.9415936 | L143: 3 | M143: NON_DUR
B144: 0 | D144: -100508.0462 | E144: L | F144: -20830.85622 | G144: 66.60106118 | H144: 200.4294174 | I144: 299.1089166 | J144: 266.0508097 | K144: 65.96190308 | L144: L | M144: BOURGS
B145: 0 | D145: -11584.84289 | E145: N | F145: -7392.269564 | G145: 16.65044852 | H145: 100.2908246 | I145: 99.58817707 | J145: 0 | K145: 2254.361073 | L145: N | M145: PRLTRT
F146: 0 | G146: 1 | H146: 2 | I146: 3 | J146: L | K146: N
F148: VALUE | G148: CAPITAL | H148: GENERAL | I148: NON_DUR | J148: BOURGS | K148: PRLTRT
F151: 8.498752846e-10 | G151: 4.953249194 | H151: -20.2506086 | I151: -47.1513175 | J151: 1.506661253 | K151: 49.76850882
E152: B | F152: 0 | G152: 1 | H152: 2 | I152: 3 | J152: L | K152: N
D153: 0 | E153: 0 | F153: 100885.6864 | G153: -333.4725741 | H153: -743.4410449 | I153: -972.6104814 | J153: -292 | K153: -2922 | L153: 0
C154: CAPITAL | D154: 0 | E154: 1 | F154: -28254.91877 | G154: 99.86075927 | H154: 209.3166752 | I154: 256.0574117 | J154: 6.605213135 | K154: 197.2231854 | L154: 1 | M154: CAPITAL
C155: GENERAL | D155: 0 | E155: 2 | F155: -24003.44168 | G155: 82.69129011 | H155: 106.5589551 | I155: 222.1686383 | J155: 9.86021048 | K155: 192.7437357 | L155: 2 | M155: GENERAL
C156: NON_DUR | D156: 0 | E156: 3 | F156: -20404.2002 | G156: 62.7157658 | H156: 147.0957812 | I156: 142.8386552 | J156: 7.977105428 | K156: 161.9415936 | L156: 3 | M156: NON_DUR
C157: BOURGS | D157: -100508.0462 | E157: L | F157: -20830.85622 | G157: 66.60106118 | H157: 200.4294174 | I157: 299.1089166 | J157: 266.0508097 | K157: 65.96190308 | L157: L | M157: BOURGS
C158: PRLTRT | D158: -11584.84289 | E158: N | F158: -7392.269564 | G158: 16.65044852 | H158: 100.2908246 | I158: 99.58817707 | J158: 0 | K158: 2254.361073 | L158: N | M158: PRLTRT
F159: 0 | G159: 1 | H159: 2 | I159: 3 | J159: L | K159: N
F161: VALUE | G161: CAPITAL | H161: GENERAL | I161: NON_DUR | J161: BOURGS | K161: PRLTRT
F164: 9.23541228e-10 | G164: 4.953249194 | H164: -20.2506086 | I164: -47.1513175 | J164: 1.506661253 | K164: 49.76850882
E165: C | F165: 0 | G165: 1 | H165: 2 | I165: 3 | J165: L | K165: N
D166: 0 | E166: 0 | F166: 100885.6864 | G166: -333.4725741 | H166: -743.4410449 | I166: -972.6104814 | J166: -292 | K166: -2922 | L166: 0
C167: CAPITAL | D167: 0 | E167: 1 | F167: -28254.91877 | G167: 99.86075927 | H167: 209.3166752 | I167: 256.0574117 | J167: 6.605213135 | K167: 197.2231854 | L167: 1 | M167: CAPITAL
C168: GENERAL | D168: 0 | E168: 2 | F168: -24003.44168 | G168: 82.69129011 | H168: 106.5589551 | I168: 222.1686383 | J168: 9.86021048 | K168: 192.7437357 | L168: 2 | M168: GENERAL
C169: NON_DUR | D169: 0 | E169: 3 | F169: -20404.2002 | G169: 62.7157658 | H169: 147.0957812 | I169: 142.8386552 | J169: 7.977105428 | K169: 161.9415936 | L169: 3 | M169: NON_DUR
C170: BOURGS | D170: -100508.0462 | E170: L | F170: -20830.85622 | G170: 66.60106118 | H170: 200.4294174 | I170: 299.1089166 | J170: 266.0508097 | K170: 65.96190308 | L170: L | M170: BOURGS
C171: PRLTRT | D171: -11584.84289 | E171: N | F171: -7392.269564 | G171: 16.65044852 | H171: 100.2908246 | I171: 99.58817707 | J171: 0 | K171: 2254.361073 | L171: N | M171: PRLTRT
F172: 0 | G172: 1 | H172: 2 | I172: 3 | J172: L | K172: N
F174: VALUE | G174: CAPITAL | H174: GENERAL | I174: NON_DUR | J174: BOURGS | K174: PRLTRT | W174: VALUE | X174: CAPITAL | Y174: GENERAL | Z174: NON_DUR | AA174: BOURGS | AB174: PRLTRT
B175: Utility Parameters:
F177: 9073811.412 | G177: -2265.721962 | H177: -19015.50142 | I177: -86285.35269 | J177: -2608.508957 | K177: -150905.5512
D178: u | E178: U | F178: 0 | G178: 1 | H178: 2 | I178: 3 | J178: L | K178: N | U178: h | V178: H | W178: 0 | X178: 1 | Y178: 2 | Z178: 3 | AA178: L | AB178: N
D179: -17799880.5 | E179: 0 | F179: -1736000.797 | G179: 709.0221284 | H179: 5283.704347 | I179: 22000 | J179: 876 | K179: 8766 | L179: 0 | V179: 0 | X179: 1 | Y179: 1 | Z179: 1 | AA179: 0 | AB179: 0 | AC179: 0
C180: CAPITAL | D180: 6698137.005 | E180: 1 | F180: -2753573.87 | G180: 579.0221284 | H180: 5123.677045 | I180: 24008.40059 | J180: 997.6057642 | K180: 56314.33399 | L180: 1 | M180: CAPITAL | T180: CAPITAL | U180: 6 | V180: 1 | W180: -5 | X180: 1 | Y180: 1 | Z180: 1 | AA180: 1 | AB180: 1 | AC180: 1 | AD180: CAPITAL
C181: GENERAL | D181: 5702280.163 | E181: 2 | F181: -2344419.429 | G181: 493.6502202 | H181: 4433.704347 | I181: 20427.11809 | J181: 836.6047242 | K181: 47868.89871 | L181: 2 | M181: GENERAL | T181: GENERAL | U181: 6 | V181: 2 | W181: -5 | X181: 1 | Y181: 1 | Z181: 1 | AA181: 1 | AB181: 1 | AC181: 2 | AD181: GENERAL
C182: NON_DUR | D182: 5156937.936 | E182: 3 | F182: -2124790.14 | G182: 450.2035597 | H182: 3960.215016 | I182: 18653.65259 | J182: 759.6559399 | K182: 43341.46156 | L182: 3 | M182: NON_DUR | T182: NON_DUR | U182: 6 | V182: 3 | W182: -5 | X182: 1 | Y182: 1 | Z182: 1 | AA182: 1 | AB182: 1 | AC182: 3 | AD182: NON_DUR
C183: BOURGS | D183: 170151.0392 | E183: L | F183: -78567.81105 | G183: 17.85123189 | H183: 130.8709568 | I183: 641.8627332 | J183: -861.3574711 | K183: 3337.273201 | L183: L | M183: BOURGS | T183: BOURGS | U183: 3 | V183: L | W183: -4 | X183: 1 | Y183: 1 | Z183: 1 | AA183: -1 | AB183: 1 | AC183: L | AD183: BOURGS
C184: PRLTRT | D184: 72374.35227 | E184: N | F184: -36459.36521 | G184: 15.97269368 | H184: 83.32970625 | I184: 554.3186888 | J184: 0 | K184: -8722.416219 | L184: N | M184: PRLTRT | T184: PRLTRT | U184: 2 | V184: N | W184: -3 | X184: 1 | Y184: 1 | Z184: 1 | AA184: 0 | AB184: -1 | AC184: N | AD184: PRLTRT
F185: 0 | G185: 1 | H185: 2 | I185: 3 | J185: L | K185: N | W185: 0 | X185: 1 | Y185: 2 | Z185: 3 | AA185: L | AB185: N
F187: VALUE | G187: CAPITAL | H187: GENERAL | I187: NON_DUR | J187: BOURGS | K187: PRLTRT
B188: Turnover | W188: VALUE | X188: CAPITAL | Y188: GENERAL | Z188: NON_DUR | AA188: BOURGS | AB188: PRLTRT
B189: Fractions: | E189: V > | F189: 0 | G189: 1 | H189: 2 | I189: 3 | J189: L | K189: N
F190: 1 | G190: 0.1 | H190: 0.3333333333 | I190: 1 | J190: 1 | K190: 1
F191: 0 | G191: 1 | H191: 2 | I191: 3 | J191: L | K191: N
F193: VALUE | G193: CAPITAL | H193: GENERAL | I193: NON_DUR | J193: BOURGS | K193: PRLTRT
